[Event "Titled Tuesday Blitz May 23 Early 2023"]
[White "Theytookourjobs"]
[Black "Rios Escobar, Adan"]
[BlackFideId "3403645"]
[WhiteElo "2343"]
[BlackElo "2450"]
[Result "0-1"]
[Round "07"]
[TimeControl "180+2"]
[Date "2023.05.23"]
[WhiteClock "0:00:00"]
[BlackClock "0:00:03"]

1. d4 {[%clk 0:03:00]}  Nf6 {[%clk 0:02:53]} 2. Bf4 {[%clk 0:03:00]}  b6 {[%clk 0:02:51]} 3. e3 {[%clk 0:02:57]}  Bb7 {[%clk 0:02:48]} 4. h3 {[%clk 0:02:57]}  g6 {[%clk 0:02:48]} 5. Nf3 {[%clk 0:02:54]}  Bg7 {[%clk 0:02:49]} 6. Nbd2 {[%clk 0:02:51]}  d6 {[%clk 0:02:49]} 7. Be2 {[%clk 0:02:51]}  O-O {[%clk 0:02:50]} 8. O-O {[%clk 0:02:51]}  Nbd7 {[%clk 0:02:50]} 9. c3 {[%clk 0:02:48]}  Ne4 {[%clk 0:02:49]} 10. Nxe4 {[%clk 0:02:47]}  Bxe4 {[%clk 0:02:49]} 11. Nd2 {[%clk 0:02:47]}  Bb7 {[%clk 0:02:49]} 12. Bf3 {[%clk 0:02:47]}  Qc8 {[%clk 0:02:45]} 13. Bxb7 {[%clk 0:02:45]}  Qxb7 {[%clk 0:02:46]} 14. Qf3 {[%clk 0:02:45]}  Rfb8 {[%clk 0:02:47]} 15. e4 {[%clk 0:02:23]}  b5 {[%clk 0:02:31]} 16. a3 {[%clk 0:02:12]}  a5 {[%clk 0:02:30]} 17. Rfe1 {[%clk 0:01:39]}  b4 {[%clk 0:02:21]} 18. axb4 {[%clk 0:01:36]}  axb4 {[%clk 0:02:22]} 19. Rxa8 {[%clk 0:01:35]}  Rxa8 {[%clk 0:02:23]} 20. e5 {[%clk 0:01:34]}  Qxf3 {[%clk 0:02:21]} 21. Nxf3 {[%clk 0:01:35]}  Nb6 {[%clk 0:01:48]} 22. exd6 {[%clk 0:01:24]}  exd6 {[%clk 0:01:46]} 23. Rc1 {[%clk 0:00:43]}  Nd5 {[%clk 0:01:36]} 24. Bd2 {[%clk 0:00:43]}  b3 {[%clk 0:01:31]} 25. c4 {[%clk 0:00:41]}  Nb6 {[%clk 0:01:31]} 26. c5 {[%clk 0:00:37]}  dxc5 {[%clk 0:01:26]} 27. Rxc5 {[%clk 0:00:37]}  Ra1+ {[%clk 0:01:11]} 28. Kh2 {[%clk 0:00:37]}  Bf8 {[%clk 0:01:10]} 29. Rb5 {[%clk 0:00:31]}  Nc4 {[%clk 0:00:41]} 30. Bc3 {[%clk 0:00:31]}  Rf1 {[%clk 0:00:28]} 31. Rxb3 {[%clk 0:00:26]}  Bd6+ {[%clk 0:00:19]} 32. Ne5 {[%clk 0:00:21]}  f6 {[%clk 0:00:18]} 33. f4 {[%clk 0:00:10]}  fxe5 {[%clk 0:00:17]} 34. fxe5 {[%clk 0:00:08]}  Be7 {[%clk 0:00:17]} 35. Rb7 {[%clk 0:00:06]}  Kf8 {[%clk 0:00:09]} 36. Rxc7 {[%clk 0:00:06]}  Ne3 {[%clk 0:00:09]} 37. Kg3 {[%clk 0:00:04]}  Rd1 {[%clk 0:00:05]} 38. Kf3 {[%clk 0:00:03]}  Nd5 {[%clk 0:00:03]} 39. Rb7 {[%clk 0:00:01]}  Nxc3 {[%clk 0:00:02]} 40. bxc3 {[%clk 0:00:02]}  Rd3+ {[%clk 0:00:03]} 41. Ke4 {[%clk 0:00:00]}  Rxc3 {[%clk 0:00:03]} 0-1


[Site "https://www.chess.com"]

[Event "Titled Tuesday Blitz May 23 Early 2023"]
[White "KorolDimitriy75"]
[Black "Wimalasuriya, Kasun M."]
[BlackFideId "9906789"]
[WhiteElo "2441"]
[BlackElo "2294"]
[Result "0-1"]
[Round "07"]
[TimeControl "180+2"]
[Date "2023.05.23"]
[WhiteClock "0:00:11"]
[BlackClock "0:00:31"]

1. d4 {[%clk 0:03:00]}  Nf6 {[%clk 0:02:50]} 2. c4 {[%clk 0:03:01]}  e6 {[%clk 0:02:48]} 3. Nc3 {[%clk 0:03:01]}  Bb4 {[%clk 0:02:42]} 4. Qc2 {[%clk 0:03:01]}  d5 {[%clk 0:02:39]} 5. cxd5 {[%clk 0:03:01]}  exd5 {[%clk 0:02:38]} 6. Bg5 {[%clk 0:03:01]}  O-O {[%clk 0:02:31]} 7. e3 {[%clk 0:03:00]}  c6 {[%clk 0:02:29]} 8. Bd3 {[%clk 0:03:00]}  h6 {[%clk 0:02:24]} 9. Bh4 {[%clk 0:03:00]}  Be7 {[%clk 0:02:23]} 10. Nge2 {[%clk 0:02:59]}  Re8 {[%clk 0:02:22]} 11. f3 {[%clk 0:02:59]}  Nbd7 {[%clk 0:02:20]} 12. O-O {[%clk 0:02:59]}  Nf8 {[%clk 0:02:18]} 13. Rad1 {[%clk 0:02:59]}  N6d7 {[%clk 0:02:17]} 14. Bf2 {[%clk 0:02:58]}  Bg5 {[%clk 0:02:14]} 15. e4 {[%clk 0:02:56]}  b6 {[%clk 0:02:04]} 16. exd5 {[%clk 0:02:52]}  cxd5 {[%clk 0:02:01]} 17. Nxd5 {[%clk 0:02:53]}  Bb7 {[%clk 0:01:57]} 18. Qb3 {[%clk 0:02:15]}  Nb8 {[%clk 0:00:49]} 19. Nec3 {[%clk 0:01:40]}  Nc6 {[%clk 0:00:47]} 20. a3 {[%clk 0:01:20]}  Ne6 {[%clk 0:00:42]} 21. Bb1 {[%clk 0:01:11]}  Na5 {[%clk 0:00:36]} 22. Qa2 {[%clk 0:00:55]}  Ba6 {[%clk 0:00:34]} 23. Rfe1 {[%clk 0:00:53]}  Bc4 {[%clk 0:00:34]} 24. b3 {[%clk 0:00:21]}  Bxb3 {[%clk 0:00:31]} 25. Qd2 {[%clk 0:00:15]}  Bxd2 {[%clk 0:00:31]} 26. Rxd2 {[%clk 0:00:11]}  Bxd5 {[%clk 0:00:31]} 0-1


[Site "https://www.chess.com"]

[Event "Titled Tuesday Blitz May 23 Early 2023"]
[White "Zacurdajev, Dmitry"]
[Black "Kuchava, Ana"]
[WhiteFideId "4196309"]
[BlackFideId "13605348"]
[WhiteElo "2240"]
[BlackElo "2001"]
[Result "0-1"]
[Round "07"]
[TimeControl "180+2"]
[Date "2023.05.23"]
[WhiteClock "0:01:32"]
[BlackClock "0:02:05"]

1. d4 {[%clk 0:03:00]}  d5 {[%clk 0:02:59]} 2. c4 {[%clk 0:03:01]}  e6 {[%clk 0:02:59]} 3. Nc3 {[%clk 0:03:01]}  Be7 {[%clk 0:02:59]} 4. Nf3 {[%clk 0:03:00]}  Nf6 {[%clk 0:02:59]} 5. Bf4 {[%clk 0:03:01]}  c5 {[%clk 0:02:59]} 6. dxc5 {[%clk 0:02:58]}  Bxc5 {[%clk 0:02:58]} 7. cxd5 {[%clk 0:02:55]}  Nxd5 {[%clk 0:02:54]} 8. Nxd5 {[%clk 0:02:54]}  exd5 {[%clk 0:02:55]} 9. a3 {[%clk 0:02:51]}  Nc6 {[%clk 0:02:55]} 10. g3 {[%clk 0:02:49]}  O-O {[%clk 0:02:51]} 11. Bg2 {[%clk 0:02:49]}  Qf6 {[%clk 0:02:50]} 12. b4 {[%clk 0:02:23]}  Bb6 {[%clk 0:02:33]} 13. O-O {[%clk 0:02:21]}  h6 {[%clk 0:02:30]} 14. Qxd5 {[%clk 0:02:17]}  Be6 {[%clk 0:02:30]} 15. Qb5 {[%clk 0:02:00]}  Rad8 {[%clk 0:02:21]} 16. Rfd1 {[%clk 0:01:56]}  Bb3 {[%clk 0:02:10]} 17. Rd3 {[%clk 0:01:32]}  Qxa1+ {[%clk 0:02:05]} 0-1


[Site "https://www.chess.com"]

[Event "Titled Tuesday Blitz May 23 Early 2023"]
[White "Vovk, Orest"]
[Black "Kielinkei"]
[WhiteFideId "14113490"]
[WhiteElo "2215"]
[BlackElo "2439"]
[Result "0-1"]
[Round "07"]
[TimeControl "180+2"]
[Date "2023.05.23"]
[WhiteClock "0:00:02"]
[BlackClock "0:00:09"]

1. h4 {[%clk 0:02:33]}  e5 {[%clk 0:02:58]} 2. h5 {[%clk 0:02:28]}  d5 {[%clk 0:02:58]} 3. h6 {[%clk 0:02:28]}  Nxh6 {[%clk 0:02:57]} 4. d4 {[%clk 0:02:29]}  e4 {[%clk 0:02:50]} 5. Bxh6 {[%clk 0:02:25]}  gxh6 {[%clk 0:02:50]} 6. e3 {[%clk 0:02:26]}  Be6 {[%clk 0:02:40]} 7. c4 {[%clk 0:02:24]}  c6 {[%clk 0:02:40]} 8. Nc3 {[%clk 0:02:24]}  Qb6 {[%clk 0:01:56]} 9. Qb3 {[%clk 0:02:22]}  Qxb3 {[%clk 0:01:22]} 10. axb3 {[%clk 0:02:12]}  a6 {[%clk 0:01:23]} 11. Nge2 {[%clk 0:01:11]}  Nd7 {[%clk 0:01:19]} 12. Nf4 {[%clk 0:01:01]}  Nf6 {[%clk 0:01:19]} 13. c5 {[%clk 0:00:48]}  h5 {[%clk 0:01:05]} 14. b4 {[%clk 0:00:48]}  Rb8 {[%clk 0:00:57]} 15. Nxh5 {[%clk 0:00:30]}  Nxh5 {[%clk 0:00:57]} 16. Rxh5 {[%clk 0:00:31]}  Be7 {[%clk 0:00:57]} 17. Be2 {[%clk 0:00:30]}  f6 {[%clk 0:00:50]} 18. g3 {[%clk 0:00:28]}  Kf7 {[%clk 0:00:49]} 19. Kd2 {[%clk 0:00:28]}  Kg6 {[%clk 0:00:47]} 20. Rah1 {[%clk 0:00:27]}  Ra8 {[%clk 0:00:45]} 21. Rh6+ {[%clk 0:00:25]}  Kg7 {[%clk 0:00:44]} 22. R6h4 {[%clk 0:00:24]}  f5 {[%clk 0:00:32]} 23. Rh6 {[%clk 0:00:24]}  Bf6 {[%clk 0:00:32]} 24. Bd1 {[%clk 0:00:18]}  Bf7 {[%clk 0:00:31]} 25. Ba4 {[%clk 0:00:14]}  Bg6 {[%clk 0:00:29]} 26. Ne2 {[%clk 0:00:13]}  Bg5 {[%clk 0:00:28]} 27. R6h2 {[%clk 0:00:13]}  h5 {[%clk 0:00:29]} 28. Nf4 {[%clk 0:00:13]}  Bxf4 {[%clk 0:00:28]} 29. exf4 {[%clk 0:00:14]}  Rh7 {[%clk 0:00:26]} 30. Ke3 {[%clk 0:00:13]}  Kf6 {[%clk 0:00:24]} 31. Bd1 {[%clk 0:00:12]}  a5 {[%clk 0:00:20]} 32. bxa5 {[%clk 0:00:12]}  Rxa5 {[%clk 0:00:10]} 33. Bxh5 {[%clk 0:00:11]}  Bxh5 {[%clk 0:00:06]} 34. Rxh5 {[%clk 0:00:12]}  Rxh5 {[%clk 0:00:05]} 35. Rxh5 {[%clk 0:00:13]}  Rb5 {[%clk 0:00:06]} 36. Rh6+ {[%clk 0:00:08]}  Kg7 {[%clk 0:00:05]} 37. Rd6 {[%clk 0:00:08]}  Rxb2 {[%clk 0:00:05]} 38. Rd7+ {[%clk 0:00:06]}  Kf6 {[%clk 0:00:05]} 39. Rc7 {[%clk 0:00:07]}  Rb3+ {[%clk 0:00:05]} 40. Ke2 {[%clk 0:00:07]}  Rb4 {[%clk 0:00:03]} 41. Ke3 {[%clk 0:00:07]}  Rb3+ {[%clk 0:00:04]} 42. Ke2 {[%clk 0:00:07]}  Rb4 {[%clk 0:00:05]} 43. Rd7 {[%clk 0:00:07]}  Rxd4 {[%clk 0:00:04]} 44. Rxb7 {[%clk 0:00:07]}  Rc4 {[%clk 0:00:05]} 45. Rd7 {[%clk 0:00:06]}  Rxc5 {[%clk 0:00:05]} 46. Rd6+ {[%clk 0:00:06]}  Ke7 {[%clk 0:00:06]} 47. Rh6 {[%clk 0:00:06]}  Rc2+ {[%clk 0:00:06]} 48. Ke3 {[%clk 0:00:06]}  c5 {[%clk 0:00:07]} 49. Rh7+ {[%clk 0:00:04]}  Kf6 {[%clk 0:00:07]} 50. Rh6+ {[%clk 0:00:04]}  Kg7 {[%clk 0:00:08]} 51. Rd6 {[%clk 0:00:02]}  d4+ {[%clk 0:00:09]} 0-1


[Site "https://www.chess.com"]

[Event "Titled Tuesday Blitz May 23 Early 2023"]
[White "Simonovic, Miroslav"]
[Black "Torres Dominguez, David"]
[WhiteFideId "919152"]
[BlackFideId "2220857"]
[WhiteElo "2042"]
[BlackElo "1999"]
[Result "1-0"]
[Round "07"]
[TimeControl "180+2"]
[Date "2023.05.23"]
[WhiteClock "0:00:12"]
[BlackClock "0:00:00"]

1. d4 {[%clk 0:03:00]}  e5 {[%clk 0:02:52]} 2. d5 {[%clk 0:03:00]}  Bc5 {[%clk 0:02:51]} 3. e3 {[%clk 0:02:59]}  d6 {[%clk 0:02:52]} 4. c4 {[%clk 0:02:57]}  f5 {[%clk 0:02:51]} 5. Nc3 {[%clk 0:02:56]}  a5 {[%clk 0:02:51]} 6. g3 {[%clk 0:02:52]}  Nf6 {[%clk 0:02:51]} 7. Bg2 {[%clk 0:02:52]}  O-O {[%clk 0:02:51]} 8. Nge2 {[%clk 0:02:52]}  Bd7 {[%clk 0:02:49]} 9. a3 {[%clk 0:02:50]}  Na6 {[%clk 0:02:49]} 10. Rb1 {[%clk 0:02:40]}  Qe8 {[%clk 0:02:47]} 11. Qc2 {[%clk 0:02:29]}  a4 {[%clk 0:02:45]} 12. Bd2 {[%clk 0:02:26]}  Kh8 {[%clk 0:02:41]} 13. Na2 {[%clk 0:02:24]}  Qh5 {[%clk 0:02:30]} 14. Nb4 {[%clk 0:02:21]}  Ne4 {[%clk 0:02:13]} 15. Nxa6 {[%clk 0:02:04]}  Rxa6 {[%clk 0:01:54]} 16. Bb4 {[%clk 0:02:03]}  Bb6 {[%clk 0:01:35]} 17. Nc3 {[%clk 0:01:52]}  Ng5 {[%clk 0:01:26]} 18. Qe2 {[%clk 0:01:43]}  Qh6 {[%clk 0:01:25]} 19. h4 {[%clk 0:01:42]}  Nf7 {[%clk 0:01:22]} 20. O-O {[%clk 0:01:29]}  e4 {[%clk 0:01:22]} 21. Nd1 {[%clk 0:00:57]}  Ne5 {[%clk 0:01:20]} 22. Bc3 {[%clk 0:00:57]}  Ng4 {[%clk 0:01:16]} 23. Bd4 {[%clk 0:00:48]}  Bxd4 {[%clk 0:00:56]} 24. exd4 {[%clk 0:00:49]}  Qf6 {[%clk 0:00:56]} 25. Ne3 {[%clk 0:00:45]}  Nxe3 {[%clk 0:00:38]} 26. fxe3 {[%clk 0:00:46]}  Qg6 {[%clk 0:00:30]} 27. Kh2 {[%clk 0:00:45]}  Rb6 {[%clk 0:00:30]} 28. Bxe4 {[%clk 0:00:42]}  Rb3 {[%clk 0:00:27]} 29. Bc2 {[%clk 0:00:40]}  Rb6 {[%clk 0:00:27]} 30. e4 {[%clk 0:00:32]}  Ra6 {[%clk 0:00:16]} 31. e5 {[%clk 0:00:29]}  Raa8 {[%clk 0:00:13]} 32. e6 {[%clk 0:00:29]}  Be8 {[%clk 0:00:14]} 33. Qd3 {[%clk 0:00:21]}  Qh6 {[%clk 0:00:11]} 34. Rxf5 {[%clk 0:00:17]}  Bg6 {[%clk 0:00:05]} 35. Rxf8+ {[%clk 0:00:17]}  Rxf8 {[%clk 0:00:06]} 36. Rf1 {[%clk 0:00:15]}  Re8 {[%clk 0:00:00]} 37. Qf3 {[%clk 0:00:12]} 1-0


[Site "https://www.chess.com"]

[Event "Titled Tuesday Blitz May 23 Early 2023"]
[White "Ciuffoletti, Paolo"]
[Black "Sadubayev, Airat"]
[WhiteFideId "807630"]
[BlackFideId "13713264"]
[WhiteElo "2143"]
[BlackElo "2157"]
[Result "1-0"]
[Round "07"]
[TimeControl "180+2"]
[Date "2023.05.23"]
[WhiteClock "0:00:13"]
[BlackClock "0:00:39"]

1. e4 {[%clk 0:03:00]}  c6 {[%clk 0:03:00]} 2. d4 {[%clk 0:02:57]}  d5 {[%clk 0:03:00]} 3. exd5 {[%clk 0:02:57]}  cxd5 {[%clk 0:03:01]} 4. c4 {[%clk 0:02:57]}  Nc6 {[%clk 0:03:02]} 5. Nf3 {[%clk 0:02:56]}  Nf6 {[%clk 0:03:00]} 6. Nc3 {[%clk 0:02:56]}  Bg4 {[%clk 0:02:46]} 7. cxd5 {[%clk 0:02:56]}  Nxd5 {[%clk 0:02:45]} 8. Qb3 {[%clk 0:02:56]}  Nxc3 {[%clk 0:02:39]} 9. bxc3 {[%clk 0:02:36]}  Qd7 {[%clk 0:02:34]} 10. d5 {[%clk 0:02:16]}  Na5 {[%clk 0:02:25]} 11. Bb5 {[%clk 0:01:37]}  Nxb3 {[%clk 0:02:23]} 12. Bxd7+ {[%clk 0:01:37]}  Bxd7 {[%clk 0:02:22]} 13. axb3 {[%clk 0:01:37]}  g6 {[%clk 0:02:20]} 14. Be3 {[%clk 0:01:33]}  Bg7 {[%clk 0:02:19]} 15. Bd4 {[%clk 0:01:23]}  O-O {[%clk 0:02:08]} 16. O-O {[%clk 0:01:21]}  a6 {[%clk 0:02:02]} 17. Bxg7 {[%clk 0:01:11]}  Kxg7 {[%clk 0:02:03]} 18. Rfe1 {[%clk 0:01:11]}  Rfe8 {[%clk 0:01:52]} 19. Ne5 {[%clk 0:00:59]}  Bf5 {[%clk 0:01:44]} 20. c4 {[%clk 0:00:49]}  f6 {[%clk 0:01:36]} 21. Nf3 {[%clk 0:00:47]}  e5 {[%clk 0:01:26]} 22. dxe6 {[%clk 0:00:36]}  Bxe6 {[%clk 0:01:26]} 23. Nd4 {[%clk 0:00:34]}  Bd7 {[%clk 0:01:25]} 24. Kf1 {[%clk 0:00:32]}  Rad8 {[%clk 0:01:16]} 25. Rxe8 {[%clk 0:00:24]}  Rxe8 {[%clk 0:01:16]} 26. Re1 {[%clk 0:00:24]}  Kf7 {[%clk 0:01:09]} 27. Rxe8 {[%clk 0:00:23]}  Bxe8 {[%clk 0:01:10]} 28. Ke2 {[%clk 0:00:23]}  Ke7 {[%clk 0:01:06]} 29. Kd3 {[%clk 0:00:23]}  Kd6 {[%clk 0:01:06]} 30. b4 {[%clk 0:00:23]}  Bf7 {[%clk 0:00:56]} 31. f4 {[%clk 0:00:21]}  g5 {[%clk 0:00:53]} 32. fxg5 {[%clk 0:00:19]}  fxg5 {[%clk 0:00:54]} 33. g3 {[%clk 0:00:19]}  h5 {[%clk 0:00:48]} 34. Nf3 {[%clk 0:00:15]}  g4 {[%clk 0:00:45]} 35. Ng5 {[%clk 0:00:14]}  Bg6+ {[%clk 0:00:45]} 36. Kd4 {[%clk 0:00:14]}  b6 {[%clk 0:00:39]} 37. Ne4+ {[%clk 0:00:13]}  Bxe4 {[%clk 0:00:36]} 38. Kxe4 {[%clk 0:00:13]}  a5 {[%clk 0:00:37]} 39. c5+ {[%clk 0:00:12]}  bxc5 {[%clk 0:00:36]} 40. bxa5 {[%clk 0:00:12]}  Kc7 {[%clk 0:00:34]} 41. Kd5 {[%clk 0:00:11]}  Kb7 {[%clk 0:00:31]} 42. Kxc5 {[%clk 0:00:11]}  Ka6 {[%clk 0:00:32]} 43. Kd5 {[%clk 0:00:11]}  Kxa5 {[%clk 0:00:33]} 44. Ke5 {[%clk 0:00:11]}  Kb5 {[%clk 0:00:33]} 45. Kf5 {[%clk 0:00:12]}  Kc5 {[%clk 0:00:34]} 46. Kg5 {[%clk 0:00:13]}  Kd5 {[%clk 0:00:34]} 47. Kxh5 {[%clk 0:00:13]}  Ke5 {[%clk 0:00:35]} 48. Kxg4 {[%clk 0:00:13]}  Kf6 {[%clk 0:00:36]} 49. h4 {[%clk 0:00:13]}  Kg7 {[%clk 0:00:36]} 50. h5 {[%clk 0:00:13]}  Kh8 {[%clk 0:00:37]} 51. Kg5 {[%clk 0:00:13]}  Kg8 {[%clk 0:00:38]} 52. Kg6 {[%clk 0:00:14]}  Kh8 {[%clk 0:00:38]} 53. g4 {[%clk 0:00:14]}  Kg8 {[%clk 0:00:39]} 54. g5 {[%clk 0:00:14]}  Kh8 {[%clk 0:00:40]} 55. Kf7 {[%clk 0:00:14]}  Kh7 {[%clk 0:00:40]} 56. g6+ {[%clk 0:00:14]}  Kh6 {[%clk 0:00:39]} 57. g7 {[%clk 0:00:14]}  Kxh5 {[%clk 0:00:38]} 58. g8=Q {[%clk 0:00:14]}  Kh6 {[%clk 0:00:39]} 59. Qg4 {[%clk 0:00:13]}  Kh7 {[%clk 0:00:39]} 60. Qg7# {[%clk 0:00:13]} 1-0


[Site "https://www.chess.com"]

[Event "Titled Tuesday Blitz May 23 Early 2023"]
[White "hakanazeri2"]
[Black "Alexikov, Alexander"]
[BlackFideId "14103958"]
[WhiteElo "2564"]
[BlackElo "2186"]
[Result "1-0"]
[Round "07"]
[TimeControl "180+2"]
[Date "2023.05.23"]
[WhiteClock "0:00:17"]
[BlackClock "0:00:00"]

1. Nc3 {[%clk 0:02:58]}  Nf6 {[%clk 0:02:59]} 2. d4 {[%clk 0:02:53]}  d6 {[%clk 0:02:58]} 3. e4 {[%clk 0:02:53]}  g6 {[%clk 0:02:59]} 4. f4 {[%clk 0:02:53]}  Bg7 {[%clk 0:02:59]} 5. Nf3 {[%clk 0:02:53]}  O-O {[%clk 0:02:59]} 6. h3 {[%clk 0:02:49]}  Nc6 {[%clk 0:02:58]} 7. Be3 {[%clk 0:02:48]}  Nh5 {[%clk 0:02:52]} 8. Kf2 {[%clk 0:02:44]}  f5 {[%clk 0:02:50]} 9. e5 {[%clk 0:02:42]}  d5 {[%clk 0:02:35]} 10. Bb5 {[%clk 0:02:34]}  Na5 {[%clk 0:02:10]} 11. Qd2 {[%clk 0:02:29]}  a6 {[%clk 0:02:07]} 12. Bd3 {[%clk 0:02:28]}  Nc6 {[%clk 0:01:57]} 13. Rag1 {[%clk 0:02:25]}  Bh8 {[%clk 0:01:19]} 14. g4 {[%clk 0:02:22]}  Ng7 {[%clk 0:01:18]} 15. Ne2 {[%clk 0:01:30]}  e6 {[%clk 0:01:16]} 16. g5 {[%clk 0:01:24]}  Nh5 {[%clk 0:01:13]} 17. h4 {[%clk 0:01:23]}  Bg7 {[%clk 0:01:10]} 18. Ng3 {[%clk 0:01:22]}  Nxg3 {[%clk 0:01:06]} 19. Rxg3 {[%clk 0:01:22]}  Kf7 {[%clk 0:01:00]} 20. h5 {[%clk 0:01:22]}  Rg8 {[%clk 0:00:59]} 21. Rgh3 {[%clk 0:01:20]}  Ne7 {[%clk 0:00:56]} 22. hxg6+ {[%clk 0:01:14]}  hxg6 {[%clk 0:00:55]} 23. Rh7 {[%clk 0:01:15]}  Bd7 {[%clk 0:00:54]} 24. Be2 {[%clk 0:00:56]}  Bb5 {[%clk 0:00:51]} 25. Bd1 {[%clk 0:00:54]}  a5 {[%clk 0:00:47]} 26. Nh4 {[%clk 0:00:50]}  Qd7 {[%clk 0:00:44]} 27. Ke1 {[%clk 0:00:44]}  b6 {[%clk 0:00:43]} 28. Qh2 {[%clk 0:00:41]}  Rh8 {[%clk 0:00:39]} 29. Nxg6 {[%clk 0:00:25]}  Nxg6 {[%clk 0:00:25]} 30. Bh5 {[%clk 0:00:24]}  Rxh7 {[%clk 0:00:21]} 31. Bxg6+ {[%clk 0:00:24]}  Kxg6 {[%clk 0:00:21]} 32. Qxh7+ {[%clk 0:00:25]}  Kf7 {[%clk 0:00:21]} 33. Rh6 {[%clk 0:00:20]}  Qc6 {[%clk 0:00:04]} 34. Rf6+ {[%clk 0:00:17]}  Ke7 {[%clk 0:00:03]} 35. Qxg7+ {[%clk 0:00:17]}  Kd8 {[%clk 0:00:02]} 36. Rf8+ {[%clk 0:00:17]}  Qe8 {[%clk 0:00:00]} 37. Bf2 {[%clk 0:00:17]} 1-0


[Site "https://www.chess.com"]

[Event "Titled Tuesday Blitz May 23 Early 2023"]
[White "Georg, Heinz"]
[Black "Estrada Nieto, Julian"]
[WhiteFideId "4607295"]
[BlackFideId "5101018"]
[WhiteElo "2315"]
[BlackElo "2161"]
[Result "0-1"]
[Round "07"]
[TimeControl "180+2"]
[Date "2023.05.23"]
[WhiteClock "0:00:00"]
[BlackClock "0:00:06"]

1. e4 {[%clk 0:03:00]}  e5 {[%clk 0:03:00]} 2. Nf3 {[%clk 0:03:00]}  Nc6 {[%clk 0:03:00]} 3. Nc3 {[%clk 0:03:00]}  Nf6 {[%clk 0:03:00]} 4. d4 {[%clk 0:03:00]}  exd4 {[%clk 0:03:01]} 5. Nd5 {[%clk 0:03:01]}  Be7 {[%clk 0:02:53]} 6. Nxd4 {[%clk 0:03:00]}  Nxd5 {[%clk 0:02:51]} 7. exd5 {[%clk 0:03:00]}  Nxd4 {[%clk 0:02:52]} 8. Qxd4 {[%clk 0:03:01]}  O-O {[%clk 0:02:52]} 9. Be2 {[%clk 0:03:01]}  d6 {[%clk 0:02:52]} 10. O-O {[%clk 0:03:00]}  Bf6 {[%clk 0:02:52]} 11. Qd3 {[%clk 0:03:00]}  Re8 {[%clk 0:02:51]} 12. c3 {[%clk 0:02:59]}  Bf5 {[%clk 0:02:45]} 13. Qd1 {[%clk 0:02:50]}  Qd7 {[%clk 0:02:18]} 14. Be3 {[%clk 0:02:45]}  a6 {[%clk 0:02:04]} 15. Re1 {[%clk 0:02:45]}  Rxe3 {[%clk 0:02:00]} 16. fxe3 {[%clk 0:02:44]}  Bg5 {[%clk 0:01:59]} 17. Bf3 {[%clk 0:02:42]}  Re8 {[%clk 0:01:40]} 18. e4 {[%clk 0:02:42]}  Bg6 {[%clk 0:01:39]} 19. Qd3 {[%clk 0:02:35]}  h5 {[%clk 0:01:37]} 20. Re2 {[%clk 0:02:28]}  Bf4 {[%clk 0:01:34]} 21. Rf1 {[%clk 0:02:25]}  Be5 {[%clk 0:01:32]} 22. g3 {[%clk 0:02:18]}  Qe7 {[%clk 0:01:32]} 23. Bg2 {[%clk 0:02:17]}  h4 {[%clk 0:01:21]} 24. Bh3 {[%clk 0:02:07]}  hxg3 {[%clk 0:01:16]} 25. hxg3 {[%clk 0:02:07]}  Qg5 {[%clk 0:01:16]} 26. Kg2 {[%clk 0:01:45]}  Bh5 {[%clk 0:01:04]} 27. Ref2 {[%clk 0:01:40]}  Bg6 {[%clk 0:00:59]} 28. Bf5 {[%clk 0:01:38]}  Bh5 {[%clk 0:00:53]} 29. Rh1 {[%clk 0:01:34]}  g6 {[%clk 0:00:49]} 30. Bd7 {[%clk 0:01:09]}  Re7 {[%clk 0:00:48]} 31. Ba4 {[%clk 0:01:09]}  Bg4 {[%clk 0:00:41]} 32. Bd1 {[%clk 0:01:07]}  Kg7 {[%clk 0:00:33]} 33. Bxg4 {[%clk 0:01:04]}  Qxg4 {[%clk 0:00:34]} 34. Rh4 {[%clk 0:01:01]}  Qg5 {[%clk 0:00:27]} 35. Qf3 {[%clk 0:01:00]}  f6 {[%clk 0:00:25]} 36. Rg4 {[%clk 0:00:59]}  Qc1 {[%clk 0:00:20]} 37. Qf5 {[%clk 0:00:55]}  g5 {[%clk 0:00:19]} 38. Kh3 {[%clk 0:00:34]}  Qh1+ {[%clk 0:00:18]} 39. Rh2 {[%clk 0:00:33]}  Qg1 {[%clk 0:00:16]} 40. Qf2 {[%clk 0:00:30]}  Qxf2 {[%clk 0:00:15]} 41. Rxf2 {[%clk 0:00:30]}  Kg6 {[%clk 0:00:14]} 42. Kg2 {[%clk 0:00:29]}  Rh7 {[%clk 0:00:14]} 43. Kf3 {[%clk 0:00:23]}  Rh1 {[%clk 0:00:13]} 44. Kg2 {[%clk 0:00:18]}  Re1 {[%clk 0:00:12]} 45. a3 {[%clk 0:00:17]}  Kh5 {[%clk 0:00:12]} 46. Kf3 {[%clk 0:00:16]}  Re3+ {[%clk 0:00:10]} 47. Kxe3 {[%clk 0:00:16]}  Kxg4 {[%clk 0:00:11]} 48. Rg2 {[%clk 0:00:10]}  Bxg3 {[%clk 0:00:10]} 49. b4 {[%clk 0:00:09]}  Kh3 {[%clk 0:00:10]} 50. Kf3 {[%clk 0:00:09]}  Be5 {[%clk 0:00:10]} 51. Rg1 {[%clk 0:00:08]}  Bh2 {[%clk 0:00:06]} 52. Rh1 {[%clk 0:00:06]}  g4+ {[%clk 0:00:06]} 53. Kf2 {[%clk 0:00:05]}  g3+ {[%clk 0:00:06]} 54. Kf3 {[%clk 0:00:05]}  g2 {[%clk 0:00:06]} 55. Re1 {[%clk 0:00:02]}  g1=Q {[%clk 0:00:06]} 56. Rxg1 {[%clk 0:00:02]}  Bxg1 {[%clk 0:00:07]} 57. c4 {[%clk 0:00:03]}  Bb6 {[%clk 0:00:07]} 58. Kf4 {[%clk 0:00:03]}  Bd4 {[%clk 0:00:06]} 59. Kf5 {[%clk 0:00:03]}  Be5 {[%clk 0:00:06]} 60. c5 {[%clk 0:00:00]}  Kg3 {[%clk 0:00:06]} 0-1


[Site "https://www.chess.com"]